[Event "*** SCC Grand Prix: Titled Tuesday Blitz"]
[Site "Chess.com"]
[Date "2020.08.25"]
[Round "8"]
[White "anon569"]
[Black "FearNoEvil12"]
[Result "0-1"]
[WhiteElo "2279"]
[BlackElo "1981"]
[TimeControl "180+1"]
[EndTime "11:37:39 PDT"]
[Termination "FearNoEvil12 won on time"]

1. e4 {[%clk 0:03:00.9]} 1... a6 {[%clk 0:02:58.9]} 2. d4 {[%clk 0:02:56.8]}
2... b5 {[%clk 0:02:59.3]} 3. Bd3 {[%clk 0:02:56.8]} 3... Bb7 {[%clk 0:02:59.7]}
4. Nf3 {[%clk 0:02:56.7]} 4... e6 {[%clk 0:03:00.1]} 5. c3 {[%clk 0:02:56.2]}
5... Nf6 {[%clk 0:03:00.4]} 6. Nbd2 {[%clk 0:02:56.3]} 6... d6 {[%clk
0:03:00.7]} 7. Qe2 {[%clk 0:02:55.1]} 7... Nbd7 {[%clk 0:03:00.7]} 8. e5 {[%clk
0:02:48]} 8... Nd5 {[%clk 0:02:59.4]} 9. Ne4 {[%clk 0:02:46.6]} 9... h6 {[%clk
0:02:59.8]} 10. O-O {[%clk 0:02:44.4]} 10... g5 {[%clk 0:02:58.1]} 11. exd6
{[%clk 0:02:35.2]} 11... cxd6 {[%clk 0:02:57.1]} 12. h3 {[%clk 0:02:33.3]} 12...
Rg8 {[%clk 0:02:55.1]} 13. Bd2 {[%clk 0:02:29.3]} 13... N7f6 {[%clk 0:02:53.9]}
14. Rfe1 {[%clk 0:02:13.9]} 14... Be7 {[%clk 0:02:43.2]} 15. Nxf6+ {[%clk
0:02:01.2]} 15... Nxf6 {[%clk 0:02:41.9]} 16. Nh2 {[%clk 0:01:50.1]} 16... h5
{[%clk 0:02:38.7]} 17. b3 {[%clk 0:01:41.4]} 17... g4 {[%clk 0:02:37.4]} 18.
hxg4 {[%clk 0:01:38.5]} 18... Nxg4 {[%clk 0:02:35.6]} 19. Be4 {[%clk 0:01:29.3]}
19... Qc7 {[%clk 0:02:24.1]} 20. Nf3 {[%clk 0:00:54.5]} 20... O-O-O {[%clk
0:02:12]} 21. a4 {[%clk 0:00:50.4]} 21... Bxe4 {[%clk 0:01:56.4]} 22. Qxe4
{[%clk 0:00:49.8]} 22... Qb7 {[%clk 0:01:56.6]} 23. axb5 {[%clk 0:00:27.6]}
23... Qxe4 {[%clk 0:01:54.3]} 24. Rxe4 {[%clk 0:00:28]} 24... axb5 {[%clk
0:01:54.6]} 25. Ra7 {[%clk 0:00:28.1]} 25... Bf6 {[%clk 0:01:47.7]} 26. Rxf7
{[%clk 0:00:26.8]} 26... Rde8 {[%clk 0:01:34.5]} 27. Rh7 {[%clk 0:00:21.8]}
27... Bd8 {[%clk 0:01:30.2]} 28. Re1 {[%clk 0:00:17.9]} 28... Ref8 {[%clk
0:01:19.4]} 29. Kf1 {[%clk 0:00:11.9]} 29... e5 {[%clk 0:01:10.8]} 30. Rxh5
{[%clk 0:00:11.8]} 30... exd4 {[%clk 0:01:06.4]} 31. cxd4 {[%clk 0:00:11.7]}
31... Kd7 {[%clk 0:01:03.8]} 32. Rxb5 {[%clk 0:00:12]} 32... Bf6 {[%clk
0:01:01]} 33. Rb7+ {[%clk 0:00:11.4]} 33... Kc6 {[%clk 0:01:00.3]} 34. Rb4
{[%clk 0:00:11.4]} 34... Rh8 {[%clk 0:00:56]} 35. Rc1+ {[%clk 0:00:11.4]} 35...
Kd7 {[%clk 0:00:54.3]} 36. Ke2 {[%clk 0:00:11.4]} 36... Re8+ {[%clk 0:00:52.9]}
37. Kd3 {[%clk 0:00:11.3]} 37... Nxf2+ {[%clk 0:00:51.6]} 38. Kc2 {[%clk
0:00:11]} 38... Rc8+ {[%clk 0:00:44.3]} 39. Rc4 {[%clk 0:00:08.5]} 39... d5
{[%clk 0:00:41.4]} 40. Rxc8 {[%clk 0:00:07.8]} 40... Rxc8+ {[%clk 0:00:40.6]}
41. Kb1 {[%clk 0:00:08.1]} 41... Rb8 {[%clk 0:00:35.9]} 42. Rf1 {[%clk
0:00:05.8]} 42... Ne4 {[%clk 0:00:34]} 43. Kc2 {[%clk 0:00:05.4]} 43... Rc8+
{[%clk 0:00:32]} 44. Kd3 {[%clk 0:00:04.7]} 44... Ke6 {[%clk 0:00:24.6]} 45. b4
{[%clk 0:00:04.7]} 45... Nxd2 {[%clk 0:00:21.7]} 46. Nxd2 {[%clk 0:00:04.2]}
46... Rb8 {[%clk 0:00:22]} 47. Rb1 {[%clk 0:00:02.7]} 47... Rb5 {[%clk
0:00:20.6]} 48. Kc3 {[%clk 0:00:02.2]} 48... Kf5 {[%clk 0:00:17.1]} 49. Nf3
{[%clk 0:00:02.8]} 49... Kf4 {[%clk 0:00:16.4]} 50. Re1 {[%clk 0:00:03.2]} 50...
Rb6 {[%clk 0:00:14.2]} 51. Re6 {[%clk 0:00:03.6]} 51... Rxe6 {[%clk 0:00:12.8]}
52. Kd3 {[%clk 0:00:04]} 52... Re3+ {[%clk 0:00:11.8]} 53. Kd2 {[%clk
0:00:04.1]} 53... Rxf3 {[%clk 0:00:07.9]} 54. gxf3 {[%clk 0:00:03.5]} 54... Kxf3
{[%clk 0:00:08.4]} 55. Kd3 {[%clk 0:00:04.1]} 55... Bd8 {[%clk 0:00:07.9]} 56.
b5 {[%clk 0:00:04.6]} 56... Bb6 {[%clk 0:00:08.1]} 57. Kc3 {[%clk 0:00:04.8]}
57... Ke4 {[%clk 0:00:07.8]} 58. Kb4 {[%clk 0:00:05.5]} 58... Bxd4 {[%clk
0:00:07.6]} 59. Ka5 {[%clk 0:00:04.4]} 59... Bc5 {[%clk 0:00:06.9]} 60. b6
{[%clk 0:00:03.3]} 60... Bd6 {[%clk 0:00:07.3]} 61. b7 {[%clk 0:00:02.7]} 61...
d4 {[%clk 0:00:08.2]} 62. Kb5 {[%clk 0:00:03.3]} 62... d3 {[%clk 0:00:08.1]} 0-1

[Event "*** SCC Grand Prix: Titled Tuesday Blitz"]
[Site "Chess.com"]
[Date "2020.08.25"]
[Round "8"]
[White "grandcoach"]
[Black "niki_2003"]
[Result "0-1"]
[WhiteElo "2081"]
[BlackElo "1706"]
[TimeControl "180+1"]
[EndTime "11:37:40 PDT"]
[Termination "niki_2003 won on time"]

1. e4 {[%clk 0:03:00.9]} 1... c5 {[%clk 0:02:59.9]} 2. b4 {[%clk 0:03:00.3]}
2... cxb4 {[%clk 0:02:53.5]} 3. a3 {[%clk 0:03:00.7]} 3... e6 {[%clk 0:02:50.5]}
4. axb4 {[%clk 0:03:00]} 4... Bxb4 {[%clk 0:02:49.9]} 5. c3 {[%clk 0:03:00.6]}
5... Bf8 {[%clk 0:02:49.2]} 6. d4 {[%clk 0:03:00.9]} 6... d5 {[%clk 0:02:46.9]}
7. e5 {[%clk 0:03:00.8]} 7... Nc6 {[%clk 0:02:44.1]} 8. Bd3 {[%clk 0:03:00.3]}
8... f6 {[%clk 0:02:42.7]} 9. Nf3 {[%clk 0:02:55.3]} 9... g6 {[%clk 0:02:37.8]}
10. Na3 {[%clk 0:02:49.7]} 10... fxe5 {[%clk 0:02:36.3]} 11. dxe5 {[%clk
0:02:45.5]} 11... Bg7 {[%clk 0:02:35.1]} 12. Qe2 {[%clk 0:02:43.2]} 12... Nge7
{[%clk 0:02:29.1]} 13. Nb5 {[%clk 0:02:40]} 13... O-O {[%clk 0:02:28.4]} 14. O-O
{[%clk 0:02:28.9]} 14... a6 {[%clk 0:02:26.2]} 15. Nbd4 {[%clk 0:02:16.4]} 15...
Qc7 {[%clk 0:02:19.2]} 16. Re1 {[%clk 0:02:15.1]} 16... Bd7 {[%clk 0:02:13.5]}
17. Ba3 {[%clk 0:02:10.5]} 17... Rf7 {[%clk 0:02:08]} 18. Bd6 {[%clk 0:02:09.9]}
18... Qd8 {[%clk 0:02:01.2]} 19. Ng5 {[%clk 0:02:09.5]} 19... Rf4 {[%clk
0:01:55.6]} 20. Ngxe6 {[%clk 0:02:06.4]} 20... Nxd4 {[%clk 0:01:49.7]} 21. Nxd8
{[%clk 0:01:47.7]} 21... Nxe2+ {[%clk 0:01:49]} 22. Rxe2 {[%clk 0:01:46.6]}
22... Rxd8 {[%clk 0:01:47.1]} 23. Bxe7 {[%clk 0:01:46.3]} 23... Re8 {[%clk
0:01:45.8]} 24. Bg5 {[%clk 0:01:41.9]} 24... Rff8 {[%clk 0:01:33.2]} 25. Rae1
{[%clk 0:01:36.2]} 25... Be6 {[%clk 0:01:32]} 26. Bc1 {[%clk 0:01:27.9]} 26...
b5 {[%clk 0:01:31.6]} 27. Ba3 {[%clk 0:01:26.8]} 27... Rf7 {[%clk 0:01:30.5]}
28. Bd6 {[%clk 0:01:26.4]} 28... Rc8 {[%clk 0:01:30.5]} 29. Rc2 {[%clk
0:00:58.1]} 29... Bf8 {[%clk 0:01:26]} 30. Ra1 {[%clk 0:00:52.6]} 30... Rc6
{[%clk 0:01:25.3]} 31. g3 {[%clk 0:00:46.7]} 31... Bxd6 {[%clk 0:01:23.7]} 32.
exd6 {[%clk 0:00:47.3]} 32... Rxd6 {[%clk 0:01:23.9]} 33. Rca2 {[%clk 0:00:41]}
33... Bc8 {[%clk 0:01:21.6]} 34. Re1 {[%clk 0:00:33.7]} 34... Rc7 {[%clk
0:01:17.8]} 35. Ra3 {[%clk 0:00:30.8]} 35... Kf7 {[%clk 0:01:15.7]} 36. f4
{[%clk 0:00:29.6]} 36... Rdc6 {[%clk 0:01:14.5]} 37. Re5 {[%clk 0:00:20.4]}
37... Be6 {[%clk 0:01:12.3]} 38. f5 {[%clk 0:00:17.5]} 38... gxf5 {[%clk
0:01:11.2]} 39. Bxf5 {[%clk 0:00:17.9]} 39... Kf6 {[%clk 0:01:10.8]} 40. Rxe6+
{[%clk 0:00:15.7]} 40... Kxf5 {[%clk 0:01:11]} 41. Rxc6 {[%clk 0:00:09.8]} 41...
Rxc6 {[%clk 0:01:11.2]} 42. Kf2 {[%clk 0:00:09.9]} 42... Ke4 {[%clk 0:01:09.2]}
43. Ke2 {[%clk 0:00:09.5]} 43... h5 {[%clk 0:01:05.2]} 44. Rb3 {[%clk
0:00:08.7]} 44... Rc5 {[%clk 0:01:01.6]} 45. Rb4+ {[%clk 0:00:08.5]} 45... Rc4
{[%clk 0:00:57.3]} 46. Rb3 {[%clk 0:00:07.5]} 46... Ke5 {[%clk 0:00:51]} 47. Kd3
{[%clk 0:00:06.4]} 47... h4 {[%clk 0:00:49.1]} 48. Rb2 {[%clk 0:00:05.1]} 48...
hxg3 {[%clk 0:00:47.9]} 49. hxg3 {[%clk 0:00:06]} 49... Rg4 {[%clk 0:00:48.5]}
50. Re2+ {[%clk 0:00:06.4]} 50... Kd6 {[%clk 0:00:47.9]} 51. Re3 {[%clk
0:00:06]} 51... Kc5 {[%clk 0:00:47.8]} 52. Rf3 {[%clk 0:00:05.3]} 52... Rg6
{[%clk 0:00:45.8]} 53. Kc2 {[%clk 0:00:04.1]} 53... a5 {[%clk 0:00:46.2]} 54.
Kb3 {[%clk 0:00:03.6]} 54... Rg4 {[%clk 0:00:44.9]} 55. Rf8 {[%clk 0:00:01.4]}
55... Rxg3 {[%clk 0:00:44.1]} 56. Rc8+ {[%clk 0:00:01.2]} 56... Kb6 {[%clk
0:00:41.2]} 57. Rb8+ {[%clk 0:00:01.2]} 57... Ka6 {[%clk 0:00:39.8]} 58. Rd8
{[%clk 0:00:01.3]} 58... b4 {[%clk 0:00:35.9]} 59. Rd6+ {[%clk 0:00:01.9]} 59...
Kb7 {[%clk 0:00:31.7]} 60. Rxd5 {[%clk 0:00:02]} 60... Rxc3+ {[%clk 0:00:31.4]}
61. Ka4 {[%clk 0:00:01.9]} 61... Ra3+ {[%clk 0:00:28.1]} 62. Kb5 {[%clk
0:00:02.1]} 62... b3 {[%clk 0:00:26.3]} 63. Rd3 {[%clk 0:00:01.7]} 63... b2
{[%clk 0:00:24.1]} 0-1

[Event "*** SCC Grand Prix: Titled Tuesday Blitz"]
[Site "Chess.com"]
[Date "2020.08.25"]
[Round "8"]
[White "Kaliopa"]
[Black "VladaSviridova"]
[Result "0-1"]
[WhiteElo "2184"]
[BlackElo "2292"]
[TimeControl "180+1"]
[EndTime "11:37:41 PDT"]
[Termination "VladaSviridova won by resignation"]

1. d4 {[%clk 0:03:00.9]} 1... d5 {[%clk 0:03:00.1]} 2. c4 {[%clk 0:03:00.7]}
2... c6 {[%clk 0:02:59.9]} 3. Nc3 {[%clk 0:02:59.9]} 3... Nf6 {[%clk 0:02:59.9]}
4. e3 {[%clk 0:02:58.1]} 4... e6 {[%clk 0:02:59.4]} 5. Nf3 {[%clk 0:02:57.5]}
5... Nbd7 {[%clk 0:02:58.5]} 6. Bd3 {[%clk 0:02:56]} 6... Bd6 {[%clk 0:02:56.1]}
7. e4 {[%clk 0:02:53.4]} 7... dxe4 {[%clk 0:02:54.5]} 8. Nxe4 {[%clk 0:02:53.5]}
8... Nxe4 {[%clk 0:02:54.6]} 9. Bxe4 {[%clk 0:02:53.6]} 9... Nf6 {[%clk
0:02:54.9]} 10. Bc2 {[%clk 0:02:53.3]} 10... O-O {[%clk 0:02:50.4]} 11. O-O
{[%clk 0:02:53]} 11... c5 {[%clk 0:02:49.1]} 12. h3 {[%clk 0:02:41.7]} 12... b6
{[%clk 0:02:36.9]} 13. Be3 {[%clk 0:02:26.6]} 13... Bb7 {[%clk 0:02:06.3]} 14.
dxc5 {[%clk 0:02:24.7]} 14... Bxc5 {[%clk 0:02:06.1]} 15. Bxc5 {[%clk
0:02:15.9]} 15... bxc5 {[%clk 0:02:05.2]} 16. Qe2 {[%clk 0:02:15.2]} 16... Bxf3
{[%clk 0:01:55]} 17. Qxf3 {[%clk 0:02:08.8]} 17... Qd2 {[%clk 0:01:52.1]} 18.
Rac1 {[%clk 0:02:04]} 18... Rab8 {[%clk 0:01:36.8]} 19. b3 {[%clk 0:01:49.4]}
19... Qa5 {[%clk 0:01:25.4]} 20. Ra1 {[%clk 0:01:36.2]} 20... Rfd8 {[%clk
0:01:12.9]} 21. Qe3 {[%clk 0:01:24.2]} 21... Rd2 {[%clk 0:01:02.3]} 22. Rac1
{[%clk 0:01:15.5]} 22... Rbd8 {[%clk 0:01:00.8]} 23. Rfd1 {[%clk 0:00:48]} 23...
Rxc2 {[%clk 0:00:57.6]} 24. Rxd8+ {[%clk 0:00:35.4]} 24... Qxd8 {[%clk
0:00:57.2]} 25. Rxc2 {[%clk 0:00:31.6]} 25... Qd1+ {[%clk 0:00:56.7]} 26. Kh2
{[%clk 0:00:31.1]} 26... Qxc2 {[%clk 0:00:56.8]} 27. Qxc5 {[%clk 0:00:31.6]}
27... h5 {[%clk 0:00:56.9]} 28. Qxa7 {[%clk 0:00:29.3]} 28... Ne4 {[%clk
0:00:48.7]} 29. f3 {[%clk 0:00:20.5]} 29... Ng5 {[%clk 0:00:46.6]} 30. Qe3
{[%clk 0:00:19.5]} 30... f6 {[%clk 0:00:34.3]} 31. a4 {[%clk 0:00:18.9]} 31...
h4 {[%clk 0:00:32.2]} 32. a5 {[%clk 0:00:18.6]} 32... e5 {[%clk 0:00:27.3]} 33.
a6 {[%clk 0:00:18]} 33... e4 {[%clk 0:00:27.6]} 34. a7 {[%clk 0:00:17.6]} 34...
Nxf3+ {[%clk 0:00:26.2]} 35. Qxf3 {[%clk 0:00:16.5]} 35... exf3 {[%clk
0:00:26.3]} 36. a8=Q+ {[%clk 0:00:16.6]} 36... Kh7 {[%clk 0:00:26.5]} 37. Qxf3
{[%clk 0:00:17.3]} 37... Qb2 {[%clk 0:00:24.5]} 38. Qe4+ {[%clk 0:00:16.1]}
38... Kg8 {[%clk 0:00:22.5]} 39. Qe8+ {[%clk 0:00:16.1]} 39... Kh7 {[%clk
0:00:22]} 40. Qh5+ {[%clk 0:00:16.7]} 40... Kg8 {[%clk 0:00:21.2]} 41. Qd5+
{[%clk 0:00:16.8]} 41... Kh7 {[%clk 0:00:20.7]} 42. c5 {[%clk 0:00:16.7]} 42...
Qf2 {[%clk 0:00:20.6]} 43. Qd3+ {[%clk 0:00:13.7]} 43... f5 {[%clk 0:00:19.8]}
44. c6 {[%clk 0:00:09.1]} 44... Qc5 {[%clk 0:00:19.7]} 45. Qc4 {[%clk
0:00:08.2]} 45... Qe5+ {[%clk 0:00:19]} 46. Kg1 {[%clk 0:00:07.9]} 46... Qe1+
{[%clk 0:00:18.9]} 47. Qf1 {[%clk 0:00:07.4]} 47... Qe3+ {[%clk 0:00:18.8]} 48.
Kh1 {[%clk 0:00:07.3]} 48... Qxb3 {[%clk 0:00:18]} 49. Qxf5+ {[%clk 0:00:07]}
49... g6 {[%clk 0:00:18]} 50. Qd7+ {[%clk 0:00:05.9]} 50... Kh6 {[%clk 0:00:18]}
51. c7 {[%clk 0:00:05.3]} 51... Qb1+ {[%clk 0:00:18.1]} 52. Kh2 {[%clk
0:00:05.4]} 52... Qe1 {[%clk 0:00:18.1]} 53. Qf7 {[%clk 0:00:03.6]} 53... Qg3+
{[%clk 0:00:17.6]} 54. Kg1 {[%clk 0:00:03.3]} 54... Qe1+ {[%clk 0:00:16.4]} 55.
Qf1 {[%clk 0:00:03.9]} 55... Qe3+ {[%clk 0:00:16]} 56. Qf2 {[%clk 0:00:04.3]}
56... Qc1+ {[%clk 0:00:15.7]} 57. Qf1 {[%clk 0:00:04.4]} 57... Qe3+ {[%clk
0:00:15.1]} 58. Kh1 {[%clk 0:00:04]} 58... Qc3 {[%clk 0:00:14.3]} 59. Qf4+
{[%clk 0:00:02.5]} 59... g5 {[%clk 0:00:13.2]} 60. Qxh4+ {[%clk 0:00:03.2]}
60... gxh4 {[%clk 0:00:12.8]} 0-1

[Event "*** SCC Grand Prix: Titled Tuesday Blitz"]
[Site "Chess.com"]
[Date "2020.08.25"]
[Round "8"]
[White "okriak"]
[Black "Dinamo3"]
[Result "1-0"]
[WhiteElo "2704"]
[BlackElo "2480"]
[TimeControl "180+1"]
[EndTime "11:37:42 PDT"]
[Termination "okriak won by resignation"]

1. e4 {[%clk 0:03:00.9]} 1... c6 {[%clk 0:03:00]} 2. d4 {[%clk 0:03:00.6]} 2...
d5 {[%clk 0:03:00.2]} 3. Nc3 {[%clk 0:03:01.2]} 3... dxe4 {[%clk 0:03:00.4]} 4.
Nxe4 {[%clk 0:03:01.5]} 4... Bf5 {[%clk 0:03:01]} 5. Ng3 {[%clk 0:03:01.3]} 5...
Bg6 {[%clk 0:03:01.4]} 6. h4 {[%clk 0:03:01.5]} 6... h6 {[%clk 0:03:01.6]} 7.
Nf3 {[%clk 0:03:02]} 7... Nd7 {[%clk 0:03:01.9]} 8. h5 {[%clk 0:03:00.8]} 8...
Bh7 {[%clk 0:03:02.2]} 9. Bd3 {[%clk 0:03:01.4]} 9... Bxd3 {[%clk 0:03:02.3]}
10. Qxd3 {[%clk 0:03:02]} 10... e6 {[%clk 0:03:03]} 11. Bd2 {[%clk 0:03:02.5]}
11... Ngf6 {[%clk 0:03:03.5]} 12. O-O-O {[%clk 0:03:01.7]} 12... Be7 {[%clk
0:03:03.8]} 13. Ne4 {[%clk 0:02:55.7]} 13... Nxe4 {[%clk 0:03:03.6]} 14. Qxe4
{[%clk 0:02:56]} 14... Nf6 {[%clk 0:03:04.1]} 15. Qe2 {[%clk 0:02:55.9]} 15...
Qd5 {[%clk 0:02:30.4]} 16. Kb1 {[%clk 0:02:55.6]} 16... O-O {[%clk 0:02:23.9]}
17. Ne5 {[%clk 0:02:44.8]} 17... c5 {[%clk 0:02:08.5]} 18. dxc5 {[%clk
0:02:41.7]} 18... Qe4 {[%clk 0:01:10.3]} 19. Qxe4 {[%clk 0:02:01.9]} 19... Nxe4
{[%clk 0:01:11.2]} 20. Be3 {[%clk 0:01:47.7]} 20... Bxc5 {[%clk 0:01:11.2]} 21.
Bxc5 {[%clk 0:01:37.1]} 21... Nxc5 {[%clk 0:01:11.2]} 22. Rd4 {[%clk 0:01:33.5]}
22... Rfc8 {[%clk 0:00:28.3]} 23. Rhd1 {[%clk 0:01:17.8]} 23... a5 {[%clk
0:00:26]} 24. c3 {[%clk 0:01:12.9]} 24... b5 {[%clk 0:00:22.3]} 25. g4 {[%clk
0:01:06.2]} 25... Rab8 {[%clk 0:00:20.1]} 26. a3 {[%clk 0:01:03.3]} 26... a4
{[%clk 0:00:19.4]} 27. Kc2 {[%clk 0:00:56.1]} 27... Kf8 {[%clk 0:00:13.3]} 28.
Nd7+ {[%clk 0:00:45.5]} 28... Nxd7 {[%clk 0:00:13.2]} 29. Rxd7 {[%clk
0:00:46.1]} 29... Ke8 {[%clk 0:00:13.4]} 30. R1d4 {[%clk 0:00:41.9]} 30... Rc4
{[%clk 0:00:11.7]} 31. Rxc4 {[%clk 0:00:32.1]} 31... bxc4 {[%clk 0:00:12.6]} 32.
Rc7 {[%clk 0:00:31.3]} 32... Rb5 {[%clk 0:00:10.4]} 33. Rxc4 {[%clk 0:00:30.2]}
33... f5 {[%clk 0:00:11.3]} 34. f3 {[%clk 0:00:28.4]} 34... Ra5 {[%clk
0:00:10.2]} 35. Rc7 {[%clk 0:00:23]} 35... fxg4 {[%clk 0:00:10.5]} 36. fxg4
{[%clk 0:00:23.3]} 36... Rg5 {[%clk 0:00:10.4]} 37. Rc4 {[%clk 0:00:23.7]} 37...
Ra5 {[%clk 0:00:10.6]} 38. Kd3 {[%clk 0:00:23.5]} 38... Ke7 {[%clk 0:00:11.1]}
39. Ke4 {[%clk 0:00:22.3]} 39... Kf6 {[%clk 0:00:11.5]} 40. Kf4 {[%clk
0:00:22.2]} 40... Rb5 {[%clk 0:00:11.2]} 41. Rb4 {[%clk 0:00:22]} 41... Ra5
{[%clk 0:00:11.2]} 42. c4 {[%clk 0:00:21.1]} 42... e5+ {[%clk 0:00:09.7]} 43.
Kf3 {[%clk 0:00:19.6]} 43... Kg5 {[%clk 0:00:10.2]} 44. Rb5 {[%clk 0:00:19.8]}
44... Ra6 {[%clk 0:00:07.9]} 45. Rxe5+ {[%clk 0:00:19.5]} 45... Kf6 {[%clk
0:00:08.8]} 46. Rf5+ {[%clk 0:00:19.3]} 46... Ke6 {[%clk 0:00:08.9]} 47. Rb5
{[%clk 0:00:19.3]} 47... Kf6 {[%clk 0:00:07.7]} 48. c5 {[%clk 0:00:18.9]} 48...
Ke5 {[%clk 0:00:07.4]} 49. Rb7 {[%clk 0:00:18.7]} 49... Kd4 {[%clk 0:00:06.2]}
50. Rxg7 {[%clk 0:00:18.4]} 50... Rf6+ {[%clk 0:00:06.5]} 51. Kg3 {[%clk
0:00:18]} 51... Ke3 {[%clk 0:00:06.9]} 52. Rg6 {[%clk 0:00:18.1]} 52... Rf3+
{[%clk 0:00:07]} 53. Kh4 {[%clk 0:00:17.8]} 53... Rf2 {[%clk 0:00:05]} 54. Rxh6
{[%clk 0:00:18.1]} 54... Rxb2 {[%clk 0:00:05.9]} 55. Ra6 {[%clk 0:00:17.7]}
55... Rb5 {[%clk 0:00:04]} 56. Rxa4 {[%clk 0:00:17.5]} 56... Rxc5 {[%clk
0:00:04.9]} 57. h6 {[%clk 0:00:17.7]} 57... Rc6 {[%clk 0:00:05.1]} 58. Kh5
{[%clk 0:00:17.7]} 58... Rc5+ {[%clk 0:00:05.1]} 59. g5 {[%clk 0:00:18]} 59...
Rc7 {[%clk 0:00:04.5]} 60. g6 {[%clk 0:00:17.2]} 60... Rc5+ {[%clk 0:00:04.3]}
61. Kg4 {[%clk 0:00:17.3]} 61... Rc1 {[%clk 0:00:04.6]} 62. g7 {[%clk
0:00:17.1]} 62... Rg1+ {[%clk 0:00:04.6]} 63. Kf5 {[%clk 0:00:17.4]} 63... Rf1+
{[%clk 0:00:03.9]} 64. Kg5 {[%clk 0:00:17.2]} 64... Rg1+ {[%clk 0:00:04.3]} 65.
Rg4 {[%clk 0:00:17.4]} 65... Rc1 {[%clk 0:00:03.2]} 66. g8=Q {[%clk 0:00:17.2]}
66... Rc5+ {[%clk 0:00:04.1]} 67. Kh4 {[%clk 0:00:17]} 1-0

[Event "*** SCC Grand Prix: Titled Tuesday Blitz"]
[Site "Chess.com"]
[Date "2020.08.25"]
[Round "8"]
[White "Supernotar"]
[Black "Vesper2018"]
[Result "1/2-1/2"]
[WhiteElo "2725"]
[BlackElo "2590"]
[TimeControl "180+1"]
[EndTime "11:37:44 PDT"]
[Termination "Game drawn by repetition"]

1. d4 {[%clk 0:03:00.9]} 1... Nf6 {[%clk 0:02:59.7]} 2. c4 {[%clk 0:02:59.5]}
2... g6 {[%clk 0:02:59.8]} 3. Nc3 {[%clk 0:02:59.1]} 3... Bg7 {[%clk 0:03:00.3]}
4. e4 {[%clk 0:02:58.9]} 4... d6 {[%clk 0:03:00.6]} 5. Be2 {[%clk 0:02:59.2]}
5... O-O {[%clk 0:03:00.5]} 6. Nf3 {[%clk 0:02:59.5]} 6... e5 {[%clk 0:02:59.6]}
7. O-O {[%clk 0:02:59.4]} 7... Nc6 {[%clk 0:02:52.8]} 8. d5 {[%clk 0:02:59.4]}
8... Ne7 {[%clk 0:02:53]} 9. Ne1 {[%clk 0:02:59.4]} 9... Nd7 {[%clk 0:02:50.2]}
10. Be3 {[%clk 0:02:59.4]} 10... f5 {[%clk 0:02:49.9]} 11. f3 {[%clk 0:02:59.5]}
11... f4 {[%clk 0:02:50.3]} 12. Bf2 {[%clk 0:02:59.8]} 12... g5 {[%clk
0:02:46.4]} 13. a4 {[%clk 0:02:59.6]} 13... a5 {[%clk 0:02:44.2]} 14. Nd3 {[%clk
0:02:59.1]} 14... b6 {[%clk 0:02:37.5]} 15. b4 {[%clk 0:02:59.2]} 15... axb4
{[%clk 0:02:37.3]} 16. Nxb4 {[%clk 0:03:00.1]} 16... Nc5 {[%clk 0:02:37.7]} 17.
Nc6 {[%clk 0:02:53.8]} 17... Nxc6 {[%clk 0:02:25.9]} 18. dxc6 {[%clk 0:02:54.7]}
18... Ne6 {[%clk 0:02:11]} 19. Nd5 {[%clk 0:02:48.6]} 19... Nd4 {[%clk
0:02:03.5]} 20. Bxd4 {[%clk 0:02:32.9]} 20... exd4 {[%clk 0:02:03.1]} 21. Bd3
{[%clk 0:02:20.8]} 21... Be6 {[%clk 0:01:59.1]} 22. a5 {[%clk 0:02:04.6]} 22...
Rxa5 {[%clk 0:01:26.6]} 23. Rxa5 {[%clk 0:02:03.9]} 23... bxa5 {[%clk
0:01:26.9]} 24. Qa4 {[%clk 0:02:01.8]} 24... Bxd5 {[%clk 0:01:24.5]} 25. cxd5
{[%clk 0:01:54]} 25... Qa8 {[%clk 0:01:20.4]} 26. Ra1 {[%clk 0:01:20.1]} 26...
Rb8 {[%clk 0:01:16.8]} 27. Qxa5 {[%clk 0:01:15.2]} 27... Qxa5 {[%clk 0:01:16.2]}
28. Rxa5 {[%clk 0:01:16.1]} 28... Rb3 {[%clk 0:01:16.3]} 29. Bc2 {[%clk
0:00:55.4]} 29... Rc3 {[%clk 0:01:11.2]} 30. Ra2 {[%clk 0:00:53.9]} 30... d3
{[%clk 0:01:09.9]} 31. Bd1 {[%clk 0:00:50.7]} 31... Bd4+ {[%clk 0:01:00.9]} 32.
Kf1 {[%clk 0:00:49]} 32... Be3 {[%clk 0:01:01]} 33. Ke1 {[%clk 0:00:47]} 33...
Kf7 {[%clk 0:00:41.5]} 34. Rb2 {[%clk 0:00:42.2]} 34... Bb6 {[%clk 0:00:38.4]}
35. Rb3 {[%clk 0:00:29.9]} 35... Ba5 {[%clk 0:00:28.6]} 36. Kf1 {[%clk
0:00:26.7]} 36... Kf6 {[%clk 0:00:24.2]} 37. Rxc3 {[%clk 0:00:23.7]} 37... Bxc3
{[%clk 0:00:24]} 38. Ba4 {[%clk 0:00:23.9]} 38... Ke5 {[%clk 0:00:23.5]} 39. Bb3
{[%clk 0:00:20]} 39... Kd4 {[%clk 0:00:23.8]} 40. Kf2 {[%clk 0:00:18.2]} 40...
Bb4 {[%clk 0:00:23.2]} 41. Ba4 {[%clk 0:00:15.7]} 41... Ba5 {[%clk 0:00:22.5]}
42. Bd1 {[%clk 0:00:13.7]} 42... Kc3 {[%clk 0:00:22.3]} 43. Ba4 {[%clk
0:00:12.5]} 43... Kd2 {[%clk 0:00:21]} 44. Bb3 {[%clk 0:00:12]} 44... Kc1 {[%clk
0:00:20.4]} 45. Ba4 {[%clk 0:00:11.7]} 45... Kd2 {[%clk 0:00:19.7]} 46. Bb3
{[%clk 0:00:11.7]} 46... Bb6+ {[%clk 0:00:15.6]} 47. Kf1 {[%clk 0:00:10.7]}
47... Kc1 {[%clk 0:00:14.4]} 48. Ba4 {[%clk 0:00:10.8]} 48... h5 {[%clk
0:00:10.3]} 49. h3 {[%clk 0:00:10.8]} 49... Kd2 {[%clk 0:00:07.1]} 50. Bb3
{[%clk 0:00:11]} 50... Ke3 {[%clk 0:00:07.5]} 51. Ba4 {[%clk 0:00:09.9]} 51...
g4 {[%clk 0:00:07.3]} 52. hxg4 {[%clk 0:00:09.6]} 52... hxg4 {[%clk 0:00:07.8]}
53. fxg4 {[%clk 0:00:08.3]} 53... Kxe4 {[%clk 0:00:08.3]} 54. Bb5 {[%clk
0:00:07.4]} 54... Bd4 {[%clk 0:00:04.5]} 55. g5 {[%clk 0:00:05.3]} 55... d2
{[%clk 0:00:04.6]} 56. Ke2 {[%clk 0:00:04.3]} 56... Bc3 {[%clk 0:00:03.7]} 57.
g6 {[%clk 0:00:04.6]} 57... Kf5 {[%clk 0:00:04.1]} 58. g7 {[%clk 0:00:03.8]}
58... Bxg7 {[%clk 0:00:04.2]} 59. Kxd2 {[%clk 0:00:04.4]} 59... Ke4 {[%clk
0:00:04.8]} 60. Bc4 {[%clk 0:00:04.1]} 60... Kd4 {[%clk 0:00:05.4]} 61. Ba2
{[%clk 0:00:04.2]} 61... Be5 {[%clk 0:00:06.1]} 62. Ke2 {[%clk 0:00:04.5]} 62...
Ke4 {[%clk 0:00:06.5]} 63. Kf2 {[%clk 0:00:04.5]} 63... Bf6 {[%clk 0:00:06.6]}
64. Ke2 {[%clk 0:00:04.9]} 64... Be5 {[%clk 0:00:07.1]} 65. Bb3 {[%clk
0:00:05.4]} 65... Bf6 {[%clk 0:00:07.3]} 66. Ba2 {[%clk 0:00:05.8]} 66... Be5
{[%clk 0:00:07.8]} 1/2-1/2